bitfinex-derivatives/quotes_BNBF0:USTF0_20250101
["timestamp","ask_amount","ask_price","bid_price","bid_amount"]
[1735719291417,1.05985319,704.26,703.46,1.06368692]
[1735719291624,0.26154696,704.25,703.46,1.06368692]
[1735719292018,1.05985319,704.26,703.46,1.06368692]
[1735719292519,1.06202606,704.44,703.48,1.06368692]
[1735719292520,1.05985319,704.25,703.48,1.06368692]
[1735719293624,1.05985319,704.37,703.47,1.06368692]
[1735719293924,0.26152825,704.36,703.47,1.06368692]
[1735719294618,1.32138144,704.36,703.46,1.06368692]
[1735719294822,1.05985319,704.36,703.46,1.06368692]
[1735719295023,0.26152836,704.35,703.46,1.06368692]
[1735719295223,1.05985319,704.36,703.46,1.06368692]
[1735719297126,1.05985319,704.38,703.46,1.06368692]
[1735719297323,0.2615272,704.37,703.46,1.06368692]
[1735719298224,0.26152728,704.36,703.46,1.06368692]
[1735719298426,1.05985319,704.38,703.46,1.06368692]
[1735719298627,0.26152728,704.37,703.46,1.06368692]
[1735719300920,0.26153173,704.36,703.46,1.06368692]
[1735719301125,0.26153173,704.35,703.46,1.06368692]
[1735719301321,0.26153173,704.34,703.46,1.06368692]
[1735719301524,1.05985319,704.38,703.46,1.06368692]
[1735719301821,0.2615321,704.37,703.46,1.06368692]
[1735719302328,1.05985319,704.36,703.45,1.06368692]
[1735719302525,0.2615321,704.35,703.45,1.06368692]
[1735719303223,0.26153339,704.34,703.45,1.06368692]
[1735719303429,1.48332327,704.47,703.47,1.06368692]
[1735719303430,1.05985319,704.3,703.47,1.06368692]
[1735719303622,0.26153339,704.29,703.47,1.06368692]
[1735719304322,0.26153339,704.29,703.48,1.06368692]
[1735719304525,0.26153339,704.28,703.48,1.06368692]
[1735719304721,0.26153339,704.27,703.48,1.06368692]
[1735719304931,0.26153339,704.26,703.48,1.06368692]
[1735719305128,1.05985319,704.31,703.48,1.06368692]
[1735719305329,0.26153938,704.3,703.48,1.06368692]
[1735719307031,1.05985319,704.31,703.48,1.06368692]
[1735719307228,0.26153579,704.3,703.48,1.06368692]
[1735719308430,1.05985319,704.31,703.48,1.06368692]
[1735719308629,0.26153713,704.3,703.48,1.06368692]
[1735719309131,1.05985319,704.31,703.48,1.06368692]
[1735719309330,0.26153731,704.3,703.46,1.06368692]
[1735719309529,1.05985319,704.33,703.46,1.06368692]
[1735719309830,0.26153286,704.32,703.46,1.06368692]
[1735719310330,0.26153286,704.32,703.47,1.06368692]
[1735719310630,0.26153284,704.31,703.47,1.06368692]
[1735719310822,1.05985319,704.34,703.47,1.06368692]
[1735719311027,0.26153304,704.33,703.47,1.06368692]
[1735719313830,0.26153527,704.32,703.47,1.06368692]
[1735719314032,0.26153527,704.31,703.46,1.06368692]
[1735719314226,0.26153527,704.3,703.46,1.06368692]
[1735719314426,1.05985319,704.33,703.46,1.06368692]
[1735719314625,0.2615359,704.32,703.46,1.06368692]
[1735719315027,0.2615359,704.32,703.47,1.06368692]
[1735719316235,1.32138909,704.32,703.47,1.06368692]
[1735719316432,1.05985319,704.32,703.47,1.06368692]
[1735719316629,0.26153806,704.31,703.47,1.06368692]
[1735719317430,1.32139125,704.31,703.47,1.06368692]
[1735719317631,0.26153806,704.3,703.47,1.06368692]
[1735719319039,0.26153806,704.3,703.28,1.06624449]
[1735719319040,1.05985319,704.28,703.49,1.06368692]
[1735719319237,0.26153881,704.27,703.49,1.06368692]
[1735719319640,1.05985319,704.28,703.49,1.06368692]
[1735719320139,1.05985319,704.29,703.51,1.06368692]
[1735719320535,0.26153748,704.28,703.51,1.06368692]
[1735719322441,1.05985319,704.29,703.51,1.06368692]
[1735719322739,1.32139065,704.28,703.51,1.06368692]
[1735719322935,0.26153746,704.27,703.51,1.06368692]
[1735719324640,1.05985319,704.28,703.52,1.06368692]
[1735719325437,1.05985319,704.28,703.52,1.055354]
[1735719326040,2.54328184,704.31,703.27,0.28438579]
[1735719326239,0.26159107,704.3,703.27,0.28438579]
[1735719326941,2.54328184,704.31,703.27,0.28438579]
[1735719327640,0.26159208,704.3,703.27,0.28438579]
[1735719327842,2.54328184,704.31,703.27,0.28438579]
[1735719328343,1.48342865,704.31,703.27,0.28438579]
[1735719329642,0.26158873,704.3,703.27,0.28438579]
[1735719331343,1.48342865,704.31,703.27,0.28438579]
[1735719331543,0.26156743,704.3,703.27,0.28438579]
[1735719333652,1.48342865,704.31,703.27,0.28438579]
[1735719334651,0.26156304,704.3,703.27,0.28438579]
[1735719335948,1.32141623,704.3,703.27,0.28438579]
[1735719336152,0.26156304,704.29,703.27,0.28438579]
[1735719337150,0.26156304,704.28,703.27,0.28438579]
[1735719337347,0.26156304,704.27,703.27,0.28438579]
[1735719337550,1.05985319,704.33,703.27,0.28438579]
[1735719337746,0.26153298,704.32,703.27,0.28438579]
[1735719338654,0.26153298,704.31,703.27,0.28438579]
[1735719338955,0.26153298,704.3,703.27,0.28438579]
[1735719339153,0.26153298,704.29,703.27,0.28438579]
[1735719339354,0.26153298,704.28,703.27,0.28438579]
[1735719339556,0.26153298,704.27,703.27,0.28438579]
[1735719339755,0.26153298,704.26,703.27,0.28438579]
[1735719339949,1.05985319,704.37,703.27,0.28438579]
[1735719340150,0.26153774,704.36,703.27,0.28438579]
[1735719341159,0.2615438,704.35,703.27,0.28438579]
[1735719341352,0.2615438,704.34,703.27,0.28438579]
[1735719341555,0.2615438,704.33,703.27,0.28438579]
[1735719341756,1.05985319,704.35,703.27,0.28438579]
[1735719341959,0.26156671,704.34,703.27,0.28438579]
[1735719342851,1.05985319,704.29,703.27,0.28438579]
[1735719343052,0.26156671,704.28,703.27,0.28438579]
[1735719343657,0.26158342,704.27,703.27,0.28438579]
[1735719343857,0.26158342,704.26,703.27,0.28438579]
[1735719344157,0.26158342,704.25,703.27,0.28438579]
[1735719344358,0.26158342,704.24,703.27,0.28438579]
[1735719344561,1.4835077,704.41,703.27,0.28438579]
[1735719344562,0.26158342,704.23,703.27,0.28438579]
[1735719344858,0.26158342,704.22,703.27,0.28438579]
[1735719345056,0.26158342,704.21,703.27,0.28438579]
[1735719345257,0.26158342,704.2,703.27,0.28438579]
[1735719345458,0.26158342,704.19,703.27,0.28438579]
[1735719345657,1.05985319,704.26,703.27,0.28438579]
[1735719345658,0.26158342,704.18,703.27,0.28438579]
[1735719345858,0.26158342,704.17,703.27,0.28438579]
[1735719346058,0.26158342,704.16,703.27,0.28438579]
[1735719346258,0.26158603,704.15,703.27,0.28438579]
[1735719346456,0.26158603,704.14,703.27,0.28438579]
[1735719346654,1.05985319,704.26,703.27,0.28438579]
[1735719346855,1.32143712,704.25,703.27,0.28438579]
[1735719347058,0.26158393,704.24,703.27,0.28438579]
[1735719348459,0.26158393,704.23,703.27,0.28438579]
[1735719348655,0.26158393,704.22,703.27,0.28438579]
[1735719348861,1.05985319,704.27,703.27,0.28438579]
[1735719349059,0.26158169,704.26,703.27,0.28438579]
[1735719349260,1.32143488,704.26,703.27,0.28438579]
[1735719349459,0.26158169,704.25,703.27,0.28438579]
[1735719349655,0.261584,704.24,703.27,0.28438579]
[1735719349855,0.261584,704.23,703.27,0.28438579]
[1735719350160,0.261584,704.22,703.27,0.28438579]
[1735719350356,0.261584,704.21,703.27,0.28438579]
[1735719350557,0.261584,704.2,703.27,0.28438579]
[1735719350860,0.261584,704.19,703.27,0.28438579]
[1735719351057,0.261584,704.18,703.27,0.28438579]
[1735719351260,0.261584,704.17,703.27,0.28438579]
[1735719351461,1.05985319,704.24,703.27,0.28438579]
[1735719351761,1.05985319,704.22,703.27,0.28438579]
[1735719351962,0.26161366,704.21,703.27,0.28438579]
[1735719352661,1.32146685,704.21,703.27,0.28438579]
[1735719352858,0.26161366,704.2,703.27,0.28438579]
[1735719354062,0.26161366,704.19,703.27,0.28438579]
[1735719354257,0.26160963,704.18,703.27,0.28438579]
[1735719354461,0.26160963,704.17,703.27,0.28438579]
[1735719354655,1.05985319,704.24,703.27,0.28438579]
[1735719354862,0.26161128,704.23,703.27,0.28438579]
[1735719356063,1.74544053,704.22,703.27,0.28438579]
[1735719356263,0.26161128,704.21,703.27,0.28438579]
[1735719356863,1.48382925,704.22,703.27,0.28438579]
[1735719357059,0.26162068,704.21,703.27,0.28438579]
[1735719357655,1.48382925,704.22,703.27,0.28438579]
[1735719357855,0.26161973,704.21,703.27,0.28438579]
[1735719359660,0.2616396,704.2,703.27,0.28438579]
[1735719359962,0.2616396,704.19,703.27,0.28438579]
[1735719360161,1.48382925,704.22,703.27,0.28438579]
[1735719360162,0.2616396,704.18,703.27,0.28438579]
[1735719360358,0.2616396,704.17,703.27,0.28438579]
[1735719360558,0.2616396,704.16,703.27,0.28438579]
[1735719360757,0.2616396,704.15,703.27,0.28438579]
[1735719361063,0.2616396,704.14,703.27,0.28438579]
[1735719361259,0.2616396,704.13,703.27,0.28438579]
[1735719361563,1.48382925,704.22,703.27,0.28438579]
[1735719361763,0.26164399,704.21,703.27,0.28438579]
[1735719364262,0.26163743,704.2,703.27,0.28438579]
[1735719364563,0.26163743,704.19,703.27,0.28438579]
[1735719364765,0.2616429,704.18,703.27,0.28438579]
[1735719365065,0.2616429,704.17,703.27,0.28438579]
[1735719365263,0.2616429,704.16,703.27,0.28438579]
[1735719365459,0.2616429,704.15,703.27,0.28438579]
[1735719365663,0.2616429,704.14,703.27,0.28438579]
[1735719365860,0.2616429,704.13,703.27,0.28438579]
[1735719366064,0.2616429,704.12,703.27,0.28438579]
[1735719366265,0.2616429,704.11,703.27,0.28438579]
[1735719366461,0.2616429,704.1,702.72,1.06624449]
[1735719366660,1.48382925,704.22,702.73,0.28460432]
[1735719366661,0.2616429,704.09,702.73,0.28460432]
[1735719366864,0.26164224,704.08,702.73,0.28460432]
[1735719367059,0.26164224,704.07,702.73,0.28460432]
[1735719367266,1.48382925,704.22,702.73,0.28460432]
[1735719367267,0.26164224,704.06,702.77,1.06624449]
[1735719367566,0.26164224,704.05,702.77,1.06624449]
[1735719367766,0.26164224,704.04,702.77,1.06624449]
[1735719367965,0.26164224,704.03,702.77,1.06624449]
[1735719368168,0.26164224,704.02,702.78,0.28458408]
[1735719368361,1.48382925,704.22,702.78,0.28458408]
[1735719368564,0.26163821,704.21,702.78,0.28458408]
[1735719368867,0.26163821,704.21,702.81,1.06624449]
[1735719369065,0.26163821,704.21,702.82,0.28456788]
[1735719369460,0.26164492,704.2,702.82,0.28456788]
[1735719369666,0.26164492,704.19,702.82,0.28456788]
[1735719369868,0.26164492,704.18,702.82,0.28456788]
[1735719370069,0.26164492,704.17,702.82,0.28456788]
[1735719370265,0.26164492,704.16,702.82,0.28456788]
[1735719370474,0.26164492,704.15,702.82,0.28456788]
[1735719370771,0.26164492,704.14,702.82,0.28456788]
[1735719370969,0.26164492,704.13,702.82,0.28456788]
[1735719371173,0.26164492,704.12,702.82,0.28456788]
[1735719371366,0.26164492,704.11,702.82,0.28456788]
[1735719371570,0.26164492,704.1,702.82,0.28456788]
[1735719371765,0.26164492,704.09,702.82,0.28456788]
[1735719371969,0.26164492,704.08,702.82,0.28456788]
[1735719372170,0.26164492,704.07,702.82,1.35081237]
[1735719372365,0.26164492,704.06,702.82,1.35081237]
[1735719372570,0.26164492,704.05,702.82,1.35081237]
[1735719372763,0.26164492,704.04,702.82,1.35081237]
[1735719372968,2.53120674,704.22,702.82,1.35081237]
[1735719373265,0.261644,704.21,702.82,0.28456788]
[1735719376981,1.05985319,704.19,702.82,0.28456788]
[1735719377179,0.261644,704.18,702.82,0.28456788]
[1735719379079,1.05985319,704.19,702.82,0.28456788]
[1735719379276,1.05985319,704.19,702.82,1.35081237]
[1735719380379,1.47135355,704.22,702.82,0.28456788]
[1735719380681,0.26164291,704.21,702.82,0.28456788]
[1735719380875,0.26164291,704.2,702.82,0.28456788]
[1735719381077,1.47135355,704.22,702.82,0.28456788]
[1735719381278,0.26164221,704.21,702.82,0.28456788]
[1735719382883,0.26164267,704.2,702.82,0.28456788]
[1735719383077,0.26164267,704.19,702.82,0.28456788]
[1735719383277,0.26164267,704.18,702.82,0.28456788]
[1735719383583,1.47135355,704.22,702.82,0.28456788]
[1735719383782,0.26164549,704.21,702.82,0.28456788]
[1735719383983,1.32149868,704.21,702.82,0.28456788]
[1735719384183,0.26164549,704.2,702.82,0.28456788]
[1735719385280,1.32149868,704.2,702.82,0.28456788]
[1735719385583,0.26164549,704.19,702.82,0.28456788]
[1735719386784,1.05985319,704.16,702.82,0.28456788]
[1735719386984,0.26164549,704.15,702.82,0.28456788]
[1735719387579,1.48410874,704.14,702.82,0.28456788]
[1735719388485,0.26166756,704.13,702.82,0.28456788]
[1735719388783,1.48410874,704.14,702.82,0.28456788]
[1735719388984,0.26166633,704.13,702.82,0.28456788]
[1735719389987,1.05985319,704.07,702.82,0.28456788]
[1735719390288,0.26166633,704.06,702.82,0.28456788]
[1735719390787,1.05985319,704.07,702.82,0.28456788]
[1735719390982,0.26166334,704.06,702.82,0.28456788]
[1735719391390,1.05985319,704.03,702.85,1.06624449]
[1735719392485,1.05985319,704.04,702.86,1.06624449]
[1735719393509,0.26165881,704.03,702.86,1.06624449]
[1735719393990,0.26165881,704.03,702.88,1.06624449]
[1735719394189,1.05985319,704.05,702.88,1.06624449]
[1735719394393,0.26166148,704.04,702.88,1.06624449]
[1735719394890,0.26166148,704.04,702.89,1.06624449]
[1735719394891,1.05985319,704.03,702.89,1.06624449]
[1735719395189,0.26166148,704.02,702.89,1.06624449]
[1735719395386,1.05985319,704.03,702.89,1.06624449]
[1735719395788,0.26165971,704.02,702.89,1.06624449]
[1735719396094,1.05985319,704.03,702.89,1.06624449]
[1735719396294,0.26166121,704.02,702.89,1.06624449]
[1735719396691,1.05985319,704.03,702.89,1.06624449]
[1735719396893,1.32154428,704.02,702.9,1.06624449]
[1735719397093,1.05985319,704.02,702.9,1.06624449]
[1735719398096,1.05985319,704.01,702.82,0.28456788]
[1735719398395,0.26169029,704.0,702.82,0.28456788]
[1735719398789,1.05985319,704.01,702.82,0.28456788]
[1735719400594,1.05985319,704.05,702.82,0.28456788]
[1735719400794,0.26168199,704.04,702.82,0.28456788]
[1735719401197,1.74592787,704.04,702.82,0.28456788]
[1735719401496,0.26168218,704.03,702.82,0.28456788]
[1735719404099,1.48424588,704.04,702.82,0.28456788]
[1735719404300,0.26168278,704.03,702.82,0.28456788]
[1735719405995,1.32153597,704.03,702.82,0.28456788]
[1735719406194,0.26168278,704.02,702.82,0.28456788]
[1735719406899,0.2616783,704.01,702.82,0.28456788]
[1735719407195,0.2616783,704.0,702.82,1.35081237]
[1735719407399,0.2616783,703.99,702.82,1.35081237]
[1735719407599,0.2616783,703.98,702.82,1.35081237]
[1735719407801,0.2616783,703.97,702.82,1.35081237]
[1735719408100,0.2616783,703.96,702.82,1.35081237]
[1735719408297,0.2616783,703.95,702.82,1.35081237]
[1735719408500,0.2616783,703.94,702.82,1.35081237]
[1735719408701,0.2616783,703.93,702.82,1.35081237]
[1735719408901,0.2616783,703.92,702.82,1.35081237]
[1735719409102,1.05985319,703.97,702.82,1.35081237]
[1735719409303,0.26168308,703.96,702.82,1.35081237]
[1735719409505,0.26168308,703.95,702.82,1.35081237]
[1735719409704,0.26168308,703.94,702.82,1.35081237]
[1735719409899,0.26168308,703.93,702.82,1.35081237]
[1735719410102,1.05985319,703.98,702.82,1.35081237]
[1735719410297,0.261679,703.97,702.82,1.35081237]
[1735719410702,0.261679,703.97,702.83,1.06624449]
[1735719410902,0.261679,703.96,702.83,1.06624449]
[1735719411102,0.261679,703.95,702.83,1.06624449]
[1735719411300,0.261679,703.94,702.83,1.06624449]
[1735719411502,0.261679,703.93,702.83,1.06624449]
[1735719411703,1.05985319,703.99,702.83,1.06624449]
[1735719411905,0.2616792,703.98,702.84,1.06624449]
[1735719412105,1.05985319,703.99,702.84,1.06624449]
[1735719412404,0.26167953,703.98,702.84,1.06624449]
[1735719414006,1.32153272,703.98,702.88,1.06624449]
[1735719414200,0.26167953,703.97,702.88,1.06624449]
[1735719416110,1.05985319,703.96,702.88,1.06624449]
[1735719416306,0.26167953,703.95,702.88,1.06624449]
[1735719417104,1.32153272,703.95,702.9,1.06624449]
[1735719417307,0.26167953,703.94,702.9,1.06624449]
[1735719417509,0.26167734,703.93,702.9,1.06624449]
[1735719417706,0.26167734,703.94,702.9,1.06624449]
[1735719417906,0.26167734,703.93,702.9,1.06624449]
[1735719418105,0.26167734,703.92,702.91,1.06624449]
[1735719418310,0.26167734,703.91,702.91,1.06624449]
[1735719418508,0.26167734,703.9,702.91,1.06624449]
[1735719418705,0.26167734,703.89,702.91,1.06624449]
[1735719418908,1.05985319,703.94,702.91,1.06624449]
[1735719419110,0.26167812,703.93,702.91,1.06624449]
[1735719419611,1.32153131,703.93,702.92,1.06624449]
[1735719419810,0.26167812,703.92,702.92,1.06624449]
[1735719420107,1.05985319,703.93,702.92,1.06624449]
[1735719420311,0.26167938,703.92,702.92,1.06624449]
[1735719421011,0.26167951,703.91,702.92,1.06624449]
[1735719422210,0.26167867,703.9,702.92,1.06624449]
[1735719422406,0.26167867,703.89,702.92,1.06624449]
[1735719422611,1.05985319,703.92,702.92,1.06624449]
[1735719422612,0.26167867,703.88,702.92,1.06624449]
[1735719422812,1.05985319,703.92,702.92,1.06624449]
[1735719423113,1.3215361,703.91,702.92,1.06624449]
[1735719423313,0.26168291,703.9,702.92,1.06624449]
[1735719424816,0.26168084,703.89,702.92,1.06624449]
[1735719425013,0.26168084,703.88,702.92,1.06624449]
[1735719425209,1.05985319,703.91,702.92,1.06624449]
[1735719425509,0.26168415,703.9,702.92,1.06624449]
[1735719425714,0.26168415,703.9,702.93,1.06624449]
[1735719427513,1.05985319,703.91,702.93,1.06624449]
[1735719427709,0.26167476,703.9,702.93,1.06624449]
[1735719428417,0.26167476,703.9,702.95,1.06624449]
[1735719428717,1.05985319,703.92,702.95,1.06624449]
[1735719428919,0.26167514,703.91,702.95,1.06624449]
[1735719429115,1.05985319,703.92,702.95,1.06624449]
[1735719429516,1.05985319,703.91,702.95,1.06624449]
[1735719430613,1.05985319,703.91,702.46,2.17691583]
[1735719430614,0.26167395,703.9,702.98,1.06624449]
[1735719430818,1.05985319,703.93,702.98,1.06624449]
[1735719431020,0.26166917,703.92,702.98,1.06624449]
[1735719431720,1.32152236,703.92,702.98,1.06624449]
[1735719431918,1.05985319,703.92,702.98,1.06624449]
[1735719432913,1.05985319,703.92,703.0,1.06624449]
[1735719433820,1.05985319,703.93,703.01,1.06624449]
[1735719435316,1.48397689,704.24,703.07,1.06624449]
[1735719435317,1.05985319,704.1,703.07,1.06624449]
[1735719436523,1.05985319,704.19,703.05,1.06624449]
[1735719436722,0.26160545,704.18,703.05,1.06624449]
[1735719437122,1.05985319,704.19,703.05,1.06624449]
[1735719437818,1.05985319,704.19,702.52,2.17691583]
[1735719437819,1.48397689,704.24,702.94,1.06624449]
[1735719438026,0.26160133,704.23,702.94,1.06624449]
[1735719438525,1.05985319,704.26,702.94,1.06624449]
[1735719438922,1.05985319,704.3,702.9,1.06624449]
[1735719439123,0.2615713,704.29,702.9,1.06624449]
[1735719439522,1.05985319,704.3,702.9,1.06624449]
[1735719440426,1.48375544,704.37,702.95,1.06624449]
[1735719440627,0.26156464,704.36,702.95,1.06624449]
[1735719440826,0.2615646,704.35,702.95,1.06624449]
[1735719441026,0.2615646,704.34,702.95,1.06624449]
[1735719441226,0.2615646,704.33,702.96,0.2845112]
[1735719441427,0.2615646,704.32,702.96,0.2845112]
[1735719441624,0.2615646,704.31,702.96,0.2845112]
[1735719441821,0.2615646,704.3,702.96,0.2845112]
[1735719442028,0.2615646,704.29,702.96,0.2845112]
[1735719442228,0.2615646,704.28,702.96,0.2845112]
[1735719442528,0.2615646,704.27,702.96,0.2845112]
[1735719442730,0.2615646,704.26,702.97,1.06624449]
[1735719442926,0.2615646,704.25,702.97,1.06624449]
[1735719443122,0.2615646,704.36,702.97,1.06624449]
[1735719443326,0.26156711,704.35,702.97,1.06624449]
[1735719443527,0.26156711,704.34,702.97,1.06624449]
[1735719443730,1.48375544,704.37,702.96,0.2845112]
[1735719443731,0.26156711,704.33,702.96,0.2845112]
[1735719444029,0.26157013,704.32,702.96,0.2845112]
[1735719444329,0.26157013,704.31,702.96,0.2845112]
[1735719444528,0.26157013,704.3,702.96,0.2845112]
[1735719444729,0.26157013,704.29,702.96,0.2845112]
[1735719444929,0.26157013,704.28,702.96,0.2845112]
[1735719445128,0.26157013,704.27,702.96,0.2845112]
[1735719445329,0.26157013,704.26,702.96,0.2845112]
[1735719445530,1.48375544,704.37,702.96,0.2845112]
[1735719445531,0.26157013,704.25,702.96,0.2845112]
[1735719445731,0.26157013,704.24,702.96,0.2845112]
[1735719445926,0.26157013,704.36,702.96,0.2845112]
[1735719446231,1.48375544,704.37,702.96,0.2845112]
[1735719446232,0.26157013,704.35,703.08,1.0621168]
[1735719446431,0.26157013,704.34,703.08,1.0621168]
[1735719446733,0.26157013,704.33,703.08,1.0621168]
[1735719446931,0.26157013,704.32,703.08,1.0621168]
[1735719447133,0.26157013,704.31,703.08,1.0621168]
[1735719447433,1.48375544,704.37,703.11,1.0621168]
[1735719447434,0.26157013,704.3,703.11,1.0621168]
[1735719447629,0.26157013,704.29,703.11,1.0621168]
[1735719447830,0.26157013,704.28,703.11,1.0621168]
[1735719448026,0.26157013,704.27,703.11,1.0621168]
[1735719448327,0.26157013,704.26,703.11,1.0621168]
[1735719448527,0.26157013,704.25,703.11,1.0621168]
[1735719448728,1.48375544,704.37,703.11,1.0621168]
[1735719448928,0.26155414,704.36,703.11,1.0621168]
[1735719450032,0.26155414,704.36,703.08,1.0621168]
[1735719451126,0.26154271,704.35,703.08,1.0621168]
[1735719451326,1.05985319,704.59,703.08,1.0621168]
[1735719451631,0.54540166,704.58,703.1,1.0621168]
[1735719451825,0.26154085,704.57,703.1,1.0621168]
[1735719452833,0.26154085,704.57,703.11,0.28445051]
[1735719453829,1.76727515,704.58,703.11,0.28445051]
[1735719453830,0.2838651,704.56,703.11,0.28445051]
[1735719454134,0.26153778,704.55,703.11,0.28445051]
[1735719458838,0.26153778,704.55,703.2,1.0621168]
[1735719459030,0.26149087,704.54,703.21,0.28441006]
[1735719459235,0.26149087,704.53,703.21,0.28441006]
[1735719459534,0.26149087,704.52,703.21,0.28441006]
[1735719459730,0.26149087,704.51,703.21,0.28441006]
[1735719459936,0.26149087,704.5,703.23,1.0621168]
[1735719460136,0.26149087,704.49,703.23,1.0621168]
[1735719460439,0.26149087,704.48,703.23,1.0621168]
[1735719460633,0.26149087,704.47,703.23,1.0621168]
[1735719460935,0.26149087,704.46,703.24,1.0621168]
[1735719461135,0.26149087,704.45,703.24,1.0621168]
[1735719461336,0.26149087,704.44,703.24,1.0621168]
[1735719461534,0.26149087,704.43,703.24,1.0621168]
[1735719461738,0.2838651,704.56,703.24,1.0621168]
[1735719461939,0.26151028,704.55,703.24,1.0621168]
[1735719462238,1.74473345,704.55,703.24,1.0621168]
[1735719462438,0.26151028,704.54,703.24,1.0621168]
[1735719463041,0.26151028,704.54,703.21,0.28441006]
[1735719463839,0.26151028,704.54,703.23,1.0621168]
[1735719464445,1.48322317,704.55,703.23,1.0621168]
[1735719464446,0.26150766,704.53,703.23,1.0621168]
[1735719464646,0.26150766,704.52,703.23,1.0621168]
[1735719464847,0.26150766,704.51,703.23,1.0621168]
[1735719465047,0.26150766,704.5,703.23,1.0621168]
[1735719465247,0.26150766,704.49,703.23,1.0621168]
[1735719465443,0.26150908,704.48,703.23,1.0621168]
[1735719465643,0.26150908,704.47,703.23,1.0621168]
[1735719465843,0.26150908,704.46,703.23,1.0621168]
[1735719466045,0.26150908,704.45,703.23,1.0621168]
[1735719466246,0.26150908,704.44,703.23,1.0621168]
[1735719466442,0.26150908,704.54,703.26,1.0621168]
[1735719466749,0.26150908,704.53,703.26,1.0621168]
[1735719466944,0.26150908,704.52,703.26,1.0621168]
[1735719467145,0.26150908,704.51,703.26,1.0621168]
[1735719467348,0.26150908,704.5,703.28,1.0621168]
[1735719467648,1.48322317,704.55,703.28,1.0621168]
[1735719467842,0.26154399,704.54,703.28,1.0621168]
[1735719468942,0.26154399,704.54,703.21,0.28441006]
[1735719468943,1.05985319,704.51,703.23,1.0621168]
[1735719469143,0.26154399,704.5,703.23,1.0621168]
[1735719470046,1.05985319,704.44,703.28,1.0621168]
[1735719470348,0.26154399,704.43,703.28,1.0621168]
[1735719471246,1.32139718,704.43,703.21,0.28441006]
[1735719471446,0.26154399,704.42,703.21,0.28441006]
[1735719472448,1.48351824,704.41,703.21,0.28441006]
[1735719472642,0.26154399,704.4,703.21,0.28441006]
[1735719473950,0.26154399,704.4,703.21,1.34652686]
[1735719474948,0.2615653,704.39,703.21,0.28441006]
[1735719475151,0.2615653,704.38,703.21,0.28441006]
[1735719475351,0.2615653,704.37,703.21,0.28441006]
[1735719475545,2.54337143,704.41,703.21,0.28441006]
[1735719475751,0.26156548,704.4,703.21,1.34652686]
[1735719477648,1.48351824,704.41,703.21,1.34652686]
[1735719477851,0.2615589,704.4,703.21,1.34652686]
[1735719478753,0.2615589,704.4,703.27,1.0621168]
[1735719480255,1.48351824,704.41,703.27,1.0621168]
[1735719480554,0.26154277,704.4,703.27,1.0621168]
[1735719480754,1.32139596,704.4,703.34,1.0621168]
[1735719480956,0.26154277,704.39,703.34,1.0621168]
[1735719481955,0.26154277,704.39,703.38,1.0621168]
[1735719482155,0.26154277,704.38,703.38,1.0621168]
[1735719482354,0.26154277,704.37,703.38,1.0621168]
[1735719482556,0.26154277,704.36,703.38,1.0621168]
[1735719482750,0.26154277,704.35,703.38,1.0621168]
[1735719482948,0.26154277,704.34,703.38,1.0621168]
[1735719483153,0.26154277,704.33,703.41,1.0621168]
[1735719483351,0.26154277,704.32,703.41,1.0621168]
[1735719483555,0.26154277,704.31,703.41,1.0621168]
[1735719483753,0.26154277,704.3,703.41,1.0621168]
[1735719483957,1.05985319,704.45,703.41,1.0621168]
[1735719484157,0.26152338,704.44,703.41,1.0621168]
[1735719484750,1.05985319,704.44,703.41,1.0621168]
[1735719485056,0.26152369,704.43,703.41,1.0621168]
[1735719485856,0.26152369,704.43,703.42,1.0621168]
[1735719486860,0.26152369,704.43,703.41,1.0621168]
[1735719487359,1.05985319,704.44,703.41,1.0621168]
[1735719487555,0.26152357,704.43,703.41,1.0621168]
[1735719489952,0.2615137,704.42,703.41,1.0621168]
[1735719490154,0.2615137,704.41,703.41,1.0621168]
[1735719490357,0.2615137,704.4,703.42,1.0621168]
[1735719490560,0.2615137,704.39,703.42,1.0621168]
[1735719490859,0.26151369,704.38,703.42,1.0621168]
[1735719491059,0.26151369,704.37,703.42,1.0621168]
[1735719491360,1.48334961,704.49,703.41,1.0621168]
[1735719491560,0.26150742,704.48,703.41,1.0621168]
[1735719491760,0.26150742,704.47,703.41,1.0621168]
[1735719491964,0.26150742,704.46,703.41,1.0621168]
[1735719492162,0.26150742,704.49,703.41,1.0621168]
[1735719492361,0.26150742,704.48,703.42,1.0621168]
[1735719492660,0.26150742,704.47,703.42,1.0621168]
[1735719492955,0.26150742,704.46,703.42,1.0621168]
[1735719493162,0.26150742,704.45,703.42,1.0621168]
[1735719493360,0.26150742,704.44,703.42,1.0621168]
[1735719493562,1.05985319,704.55,703.43,1.0621168]
[1735719493862,0.26149423,704.54,703.43,1.0621168]
[1735719494664,0.26149423,704.54,703.44,1.0621168]
[1735719494861,0.26149423,704.53,703.44,1.0621168]
[1735719495063,0.26149423,704.52,703.44,1.0621168]
[1735719495257,0.26149423,704.55,703.44,1.0621168]
[1735719495456,0.26149366,704.54,703.44,1.0621168]
[1735719495659,0.26149366,704.53,703.44,1.0621168]
[1735719495859,0.26149366,704.52,703.44,1.0621168]
[1735719496061,1.34371829,704.56,703.44,1.0621168]
[1735719496062,0.26149366,704.51,703.44,1.0621168]